fUST/lending_fUST_20240304
["ID","MTS","AMOUNT","RATE_DAILY","PERIOD"]
[316561665,1709541042980,-59287.35912639,0.00024,5]
[316561942,1709541046107,-297026.18301,0.00024,5]
[316561944,1709541046118,-3236.3,0.00024,5]
[316561947,1709541046130,-6495.0,0.00024,5]
[316561949,1709541046145,-543.59452264,0.00024,5]
[316561951,1709541046156,-17716.0006,0.00024,5]
[316561960,1709541046212,-1032.36645246,0.00024,5]
[316563835,1709541065137,10217.23828962,0.0002,2]
[316564765,1709541365112,500.0,0.0002,2]
[316564766,1709541365142,8358.91012677,0.0002,2]
[316564801,1709541797513,565.0,0.0002,10]
[316564934,1709542034087,-160.47575149,0.00021425,7]
[316564949,1709542053110,-155.79833176,0.00021424,2]
[316564950,1709542053129,-262.31089602,0.00021424,2]
[316564951,1709542053148,-102.00687365,0.00021425,7]
[316564952,1709542053172,-32.95849568,0.00021425,2]
[316564964,1709542134345,150.0,0.000189,2]
[316564965,1709542150082,-623.74333508,0.00021425,2]
[316564966,1709542150102,-687.53634561,0.00021425,2]
[316564967,1709542150123,-154.86062544,0.00021426,2]
[316564968,1709542150144,-1635.48761741,0.00021426,2]
[316564969,1709542150165,-1235.11908348,0.00021428,2]
[316564970,1709542150185,-218.830142,0.00021536,2]
[316564971,1709542150205,-221.52549461,0.00021871,2]
[316564972,1709542150224,-319.91339283,0.000219,2]
[316564973,1709542152132,-11701.60381168,0.00021426,2]
[316564974,1709542153104,-1080.24298436,0.00021424,2]
[316564975,1709542153126,-4233.23232101,0.00021426,2]
[316564976,1709542153145,-11.55162541,0.000219,2]
[316564977,1709542153165,-276.12417722,0.00022,2]
[316565027,1709542234355,-262.48262514,0.00021779,2]
[316565029,1709542234364,-262.48262514,0.00021999,7]
[316565031,1709542234374,-262.31089602,0.00021999,2]
[316565033,1709542234383,-157.20148807,0.00022,2]
[316565035,1709542234392,-327.32045809,0.00022553,2]
[316565037,1709542234401,-200.35742495,0.00022554,2]
[316565039,1709542234410,-466.31496186,0.00022665,2]
[316565041,1709542234420,-344.37002415,0.00022667,2]
[316565043,1709542234432,-247.61422241,0.00022667,2]
[316565045,1709542234441,-9049.02290847,0.00022667,2]
[316565048,1709542234450,-3930.27044293,0.00023022,5]
[316565049,1709542234459,-7476.26661027,0.000235,27]
[316565052,1709542234471,-1215.70122766,0.000235,27]
[316565054,1709542234487,-1373.96854507,0.000235,27]
[316565056,1709542234496,-186.74715764,0.00023659,2]
[316565058,1709542234505,-49716.58493496,0.000239,2]
[316565060,1709542234515,-150.0,0.000239,2]
[316565062,1709542234524,-1647.59889284,0.0002398,7]
[316565064,1709542234535,-73611.87945268,0.0002398,7]
[316565066,1709542234545,-150.0,0.00023988,2]
[316565068,1709542234559,-290.22334133,0.00023998,2]
[316565070,1709542234568,-275.4341302,0.00023998,2]
[316565072,1709542234577,-535.78782311,0.00023998,2]
[316565074,1709542234587,-557.80133072,0.00023998,2]
[316565076,1709542234597,-154.95350156,0.00023998,2]
[316565078,1709542234607,-20843.89309107,0.00023998,2]
[316565080,1709542234616,-156.08322571,0.00023998,2]
[316565082,1709542234626,-155.00310006,0.00023998,2]
[316565084,1709542234635,-1508.1025562,0.00023998,2]
[316565086,1709542234645,-2595.08936365,0.00023998,2]
[316565088,1709542234654,-717.84192549,0.00023998,2]
[316565090,1709542234663,-1634.92402933,0.00023998,2]
[316565091,1709542234672,-173.99017365,0.00023998,2]
[316565093,1709542234681,-294.10520677,0.00023998,2]
[316565095,1709542234690,-14909.41838543,0.00023998,2]
[316565097,1709542234699,-9402.5425797,0.00023999,2]
[316565099,1709542234709,-22632.91417402,0.00024,5]
[316565311,1709542238292,-3605.9054,0.000239,2]
[316565314,1709542238309,-2762.396074,0.000239,2]
[316565315,1709542238318,-6774.23842417,0.00024,5]
[316565317,1709542238330,-11801.52966589,0.00024,5]
[316565319,1709542238342,-1728669.71276315,0.00024,5]
[316565321,1709542238354,-3267.778,0.00024,5]
[316565433,1709542241181,-7060.17919816,0.00024,5]
[316565435,1709542241193,-6822.8,0.00024,5]
[316565438,1709542241216,-19616.60236129,0.00024,5]
[316565441,1709542241230,-2678.11794337,0.00024,5]
[316565518,1709542243125,-6368.301474,0.00023661,2]
[316565520,1709542243135,-123786.89837985,0.00024,5]
[316565522,1709542243147,-18146.75488579,0.00024,5]
[316565629,1709542246302,-155.18462565,0.00022,2]
[316565630,1709542246314,-329.2936085,0.00023999,2]
[316565631,1709542246323,-157.12123303,0.00023999,2]
[316565632,1709542246333,-4361.13003282,0.00024,5]
[316565634,1709542246345,-2029.91580048,0.00024,5]
[316570652,1709543109107,68282.85199324,0.0002,2]
[316570658,1709543133929,10957.7,0.0002,2]
[316570660,1709543170841,1472.85786267,0.00019889,2]
[316570661,1709543178849,154.86062544,0.00019888,2]
[316570662,1709543187669,154.86062544,0.00019888,2]
[316570663,1709543192379,479.554902,0.00019678,2]
[316570665,1709543197205,1472.85786267,0.00019886,2]
[316570668,1709543206379,1472.85786267,0.00019886,2]
[316570669,1709543215162,1472.85786267,0.00019886,2]
[316570673,1709543224277,274.17258195,0.00019884,2]
[316570674,1709543232634,274.17258195,0.00019884,2]
[316570679,1709543241096,-154.86062544,0.00020084,2]
[316570680,1709543241117,-274.17258195,0.00020085,2]
[316570681,1709543241138,-51.28965364,0.00020086,2]
[316570682,1709543241774,154.86062544,0.00019883,2]
[316570683,1709543244120,-574.936502,0.00020086,2]
[316570685,1709543250446,846.63170703,0.00019885,2]
[316570687,1709543258418,262.31089602,0.00019884,2]
[316570690,1709543266509,262.48262514,0.00019883,2]
[316570693,1709543274611,927.44670787,0.00019882,2]
[316570697,1709543282685,927.44670787,0.00019882,2]
[316570705,1709543290739,927.44670787,0.00019882,2]
[316570706,1709543298638,927.44670787,0.00019882,2]
[316570707,1709543307273,531.04140403,0.00019882,2]
[316570708,1709543307305,396.40530384,0.00019882,2]
[316570709,1709543316392,262.31089602,0.00019881,2]
[316570710,1709543324404,262.48262514,0.00019781,2]
[316570711,1709543332227,262.48262514,0.00019781,2]
[316570712,1709543339509,316.31854986,0.000189,2]
[316570713,1709543339539,235.49979727,0.000189,2]
[316570714,1709543340940,262.48262514,0.00019781,2]
[316570724,1709543349805,262.48262514,0.00019781,2]
[316570725,1709543351191,-262.48262514,0.00019981,7]
[316570726,1709543351210,-5614.45881475,0.00019982,2]
[316570727,1709543351230,-927.44670787,0.00020081,2]
[316570728,1709543351251,-262.31089602,0.00020082,2]
[316570729,1709543351274,-846.63170703,0.00020086,2]
[316570730,1709543351293,-1472.85786267,0.00020087,2]
[316570731,1709543351312,-166.666667,0.00020096,2]
[316570732,1709543351332,-24900.0,0.00020165,2]
[316570733,1709543351351,-160.7568805,0.00020697,2]
[316570734,1709543351371,-992.82920892,0.00020728,2]
[316570735,1709543351391,-1049.9852778,0.00020837,2]
[316570736,1709543351411,-534.29266261,0.00021557,2]
[316570737,1709543351431,-78.36235455,0.00021764,2]
[316570740,1709543363113,-560.2791059,0.00021546,2]
[316570741,1709543363134,-543.32927503,0.00021764,2]
[316570835,1709543435710,-16.94983087,0.00021764,2]
[316570837,1709543435721,-151.15845915,0.00022335,2]
[316570839,1709543435733,-166.509719,0.00022394,2]
[316570841,1709543435743,-262.31089602,0.00022666,2]
[316570843,1709543435754,-134.46440386,0.00022667,2]
[316570845,1709543435768,-481.78869786,0.00022667,2]
[316570847,1709543435782,-155.43832062,0.0002267,2]
[316570848,1709543435795,-534.56629894,0.00023,2]
[316570850,1709543435807,-121.00818176,0.00023,2]
[316570852,1709543435822,-1089.25237402,0.00023,2]
[316570861,1709543435921,-12651.73944422,0.00023,2]
[316570862,1709543435931,-168.4034774,0.00023178,2]
[316570864,1709543435942,-1000.0,0.00023667,5]
[316570866,1709543435952,-160.6885598,0.0002389,2]
[316570867,1709543435962,-1706.16520104,0.000239,2]
[316570869,1709543435972,-551.81834713,0.000239,2]
[316570871,1709543435981,-662.1,0.0002399,3]
[316570872,1709543435992,-623.51457939,0.00023998,2]
[316570873,1709543436003,-201.86313141,0.00023998,2]
[316570874,1709543436012,-321.4643478,0.00023998,2]
[316570875,1709543436022,-229.067253,0.00023998,2]
[316570876,1709543436031,-179.81951136,0.00023998,2]
[316570877,1709543436042,-1472.85786267,0.00023998,2]
[316570878,1709543436053,-632.217765,0.00023998,2]
[316570879,1709543436062,-262.48262514,0.00023998,7]
[316570880,1709543436072,-1655.19586558,0.00023999,2]
[316570881,1709543436087,-630.33424637,0.00023999,2]
[316570882,1709543436098,-325.09245469,0.00023999,2]
[316570883,1709543436108,-357.76276537,0.00023999,2]
[316570884,1709543436118,-1954671.89793865,0.00024,5]
[316570885,1709543436130,-1447.91414765,0.00024,5]
[316570926,1709543438348,-1635.48761741,0.00022393,2]
[316570928,1709543438357,-519.6744,0.00023025,2]
[316570930,1709543438367,-1726514.55074574,0.00024,5]
[316570932,1709543438378,-530280.80080079,0.00024,5]
[316570934,1709543438389,-15823.40895169,0.00024,5]
[316570937,1709543438426,-918.5899012,0.00024,5]
[316570967,1709543441383,-262.48262514,0.00022665,7]
[316570968,1709543441393,-498.1516792,0.000239,2]
[316570969,1709543441404,-459.62954792,0.000239,2]
[316570970,1709543441414,-26144.99035208,0.00024,5]
[316571010,1709543443485,-1599.75193498,0.0002376,2]
[316571011,1709543443495,-2466.16953725,0.00024,5]
[316571012,1709543443506,-2070.0,0.00024,5]
[316571013,1709543443523,-7050.0,0.00024,5]
[316571014,1709543443535,-6500.00000001,0.00024,5]
[316571044,1709543446483,-703.64,0.00024,5]
[316571045,1709543446494,-6528.04712839,0.00024,5]
[316571046,1709543446507,-6527.0,0.00024,5]
[316571165,1709544211911,262.48262514,0.0001991,7]
[316571182,1709544369057,1739.53495245,0.0001912,2]
[316571183,1709544369091,865.97725655,0.0001912,2]
[316571191,1709544441261,-230.5517118,0.00019734,2]
[316571193,1709544441324,-154.87609912,0.000199,2]
[316571194,1709544441345,-1568.40593908,0.000199,2]
[316571200,1709544459465,262.48262514,0.00019899,7]
[316571205,1709544525966,168.041877,0.00019178,2]
[316571206,1709544526260,250.0,0.00019118,2]
[316571214,1709544544552,535.63259116,0.000189,2]
[316571215,1709544544886,2680.34827529,0.00019064,2]
[316571216,1709544544916,5500.0,0.00019064,2]
[316571217,1709544544945,7500.0,0.00019064,2]
[316571218,1709544544974,9000.0,0.00019064,2]
[316571219,1709544545003,219.65172471,0.00019064,2]
[316571221,1709544558124,-1635.48761741,0.00019727,2]
[316571222,1709544558147,-3141.40913344,0.00019728,2]
[316571223,1709544558167,-154.87609912,0.00019728,2]
[316571224,1709544558187,-274.17258195,0.00019729,2]
[316571225,1709544558208,-262.31089602,0.00019729,2]
[316571226,1709544558233,-623.74333508,0.0001973,2]
[316571227,1709544558253,-8417.45937338,0.000199,2]
[316571228,1709544558273,-300.0,0.000199,2]
[316571229,1709544558305,-1494.63590158,0.0001991,2]
[316571230,1709544558329,-328.916695,0.00019913,2]
[316571231,1709544558349,-151.75539254,0.0002,2]
[316571232,1709544558370,-781.65092481,0.00020069,2]
[316571233,1709544558391,-1169.3789858,0.0002007,2]
[316571234,1709544558412,-161.14602241,0.00020942,2]
[316571235,1709544561287,623.74333508,0.00019726,2]
[316571295,1709544632431,-188.2766801,0.00022666,2]
[316571297,1709544632441,-8732.16700383,0.00022667,2]
[316571299,1709544632452,-1253.69830863,0.00022667,2]
[316571301,1709544632462,-2109.39446099,0.00022668,2]
[316571303,1709544632471,-583.27438548,0.0002267,2]
[316571305,1709544632482,-254.9616534,0.0002267,2]
[316571307,1709544632491,-1116.97467675,0.00022674,2]
[316571308,1709544632500,-3195.82639265,0.00023027,5]
[316571309,1709544632509,-193.78417308,0.00023027,2]
[316571310,1709544632518,-3740.6712,0.00023278,30]
[316571311,1709544632528,-170.36932604,0.00023759,2]
[316571312,1709544632537,-535.63259116,0.000239,2]
[316571313,1709544632546,-862.00310439,0.000239,2]
[316571314,1709544632555,-300.97386749,0.0002398,2]
[316571315,1709544632563,-906.04110354,0.00023998,2]
[316571344,1709544633389,-14164.6308707,0.00023998,2]
[316571345,1709544633398,-322.67112653,0.00023998,2]
[316571346,1709544633408,-186.45155431,0.00023998,2]
[316571347,1709544633418,-238.02294021,0.00023998,2]
[316571348,1709544633427,-154.8915759,0.00023998,2]
[316571349,1709544633437,-386.75492942,0.00023998,2]
[316571350,1709544633447,-155.10251152,0.00023998,2]
[316571351,1709544633456,-47.40444764,0.00023998,2]
[316571352,1709544633634,-0.01932174,0.00023998,2]
[316571353,1709544633645,-258.31712702,0.00023998,2]
[316571354,1709544633654,-211.35028416,0.00023998,2]
[316571355,1709544633664,-178.51269207,0.00023998,7]
[316571356,1709544633673,-290.12603594,0.00023998,2]
[316571357,1709544633682,-262.31089602,0.00023998,2]
[316571358,1709544633692,-218.95732485,0.00023998,2]
[316571359,1709544633701,-1633.79685317,0.00023998,2]
[316571360,1709544633710,-952.39523778,0.00023998,2]
[316571361,1709544633719,-781.65092481,0.00023998,2]
[316571362,1709544633728,-182.52897918,0.00023998,2]
[316571363,1709544633737,-446.12854905,0.00023998,2]
[316571364,1709544633746,-525.7525633,0.00023999,2]
[316571365,1709544633755,-487.57146112,0.00023999,2]
[316571366,1709544633764,-227.56471829,0.00023999,2]
[316571367,1709544633774,-500.0,0.00023999,2]
[316571368,1709544633783,-500.0,0.00023999,2]
[316571369,1709544633792,-158.82040045,0.00023999,2]
[316571370,1709544633801,-500.0,0.00023999,2]
[316571371,1709544633810,-500.0,0.00023999,2]
[316571372,1709544633819,-500.0,0.00023999,2]
[316571373,1709544633828,-500.0,0.00023999,2]
[316571374,1709544633837,-506.15038163,0.00023999,2]
[316571375,1709544633846,-500.0,0.00023999,2]
[316571376,1709544633857,-500.0,0.00023999,2]
[316571377,1709544633867,-500.0,0.00023999,2]
[316571378,1709544633876,-550.0,0.00023999,2]
[316571379,1709544633885,-500.0,0.00023999,2]
[316571380,1709544633894,-500.0,0.00023999,2]
[316571381,1709544633903,-500.0,0.00023999,2]
[316571382,1709544633913,-500.0,0.00023999,2]
[316571383,1709544633921,-263.94780259,0.00023999,2]
[316571384,1709544633930,-500.0,0.00023999,2]
[316571385,1709544633939,-342.3610885,0.00023999,2]
[316571386,1709544633949,-500.0,0.00023999,2]
[316571387,1709544633958,-500.0,0.00023999,2]
[316571388,1709544633967,-500.0,0.00023999,2]
[316571389,1709544633976,-500.0,0.00023999,2]
[316571390,1709544633985,-500.0,0.00023999,2]
[316571391,1709544633994,-500.0,0.00023999,2]
[316571392,1709544634003,-500.0,0.00023999,2]
[316571393,1709544634012,-151.0,0.00023999,2]
[316571394,1709544634021,-151.0,0.00023999,2]
[316571395,1709544634031,-151.0,0.00023999,2]
[316571396,1709544634040,-151.0,0.00023999,2]
[316571397,1709544634050,-151.0,0.00023999,2]
[316571398,1709544634059,-159.2953028,0.00023999,2]
[316571399,1709544634068,-500.0,0.00023999,2]
[316571400,1709544634078,-500.0,0.00023999,2]
[316571401,1709544634087,-500.0,0.00023999,2]
[316571402,1709544634097,-500.0,0.00023999,2]
[316571403,1709544634108,-500.0,0.00023999,2]
[316571404,1709544634117,-500.0,0.00023999,2]
[316571405,1709544634127,-477.84768881,0.00023999,2]
[316571406,1709544634136,-500.0,0.00023999,2]
[316571407,1709544634146,-500.0,0.00023999,2]
[316571408,1709544634157,-500.0,0.00023999,2]
[316571409,1709544634166,-500.0,0.00023999,2]
[316571410,1709544634175,-500.0,0.00023999,2]
[316571411,1709544634184,-500.0,0.00023999,2]
[316571412,1709544634194,-500.0,0.00023999,2]
[316571413,1709544634203,-500.0,0.00023999,2]
[316571414,1709544634213,-500.0,0.00023999,2]
[316571415,1709544634222,-500.0,0.00023999,2]
[316571416,1709544634231,-500.0,0.00023999,2]
[316571417,1709544634242,-500.0,0.00023999,2]
[316571418,1709544634251,-500.0,0.00023999,2]
[316571419,1709544634260,-500.0,0.00023999,2]
[316571420,1709544634269,-500.0,0.00023999,2]
[316571421,1709544634278,-500.0,0.00023999,2]
[316571422,1709544634288,-500.0,0.00023999,2]
[316571423,1709544634297,-500.0,0.00023999,2]
[316571424,1709544634306,-500.0,0.00023999,2]
[316571425,1709544634317,-500.0,0.00023999,2]
[316571426,1709544634326,-500.0,0.00023999,2]
[316571427,1709544634335,-500.0,0.00023999,2]
[316571428,1709544634344,-353.75120564,0.00023999,2]
[316571429,1709544634354,-500.0,0.00023999,2]
[316571430,1709544634363,-500.0,0.00023999,2]
[316571431,1709544634373,-500.0,0.00023999,2]
[316571432,1709544634382,-500.0,0.00023999,2]
[316571433,1709544634391,-500.0,0.00023999,2]
[316571434,1709544634401,-500.0,0.00023999,2]
[316571435,1709544634410,-200.69358182,0.00023999,2]
[316571436,1709544634419,-500.0,0.00023999,2]
[316571437,1709544634428,-500.0,0.00023999,2]
[316571438,1709544634437,-500.0,0.00023999,2]
[316571439,1709544634447,-500.0,0.00023999,2]
[316571440,1709544634456,-500.0,0.00023999,2]
[316571441,1709544634465,-500.0,0.00023999,2]
[316571442,1709544634475,-500.0,0.00023999,2]
[316571443,1709544634484,-500.0,0.00023999,2]
[316571444,1709544634493,-500.0,0.00023999,2]
[316571445,1709544634502,-300.0,0.00023999,2]
[316571446,1709544634511,-500.0,0.00023999,2]
[316571447,1709544634520,-500.0,0.00023999,2]
[316571448,1709544634529,-500.0,0.00023999,2]
[316571449,1709544634538,-500.0,0.00023999,2]
[316571450,1709544634547,-500.0,0.00023999,2]
[316571451,1709544634556,-500.0,0.00023999,2]
[316571452,1709544634565,-500.0,0.00023999,2]
[316571453,1709544634574,-500.0,0.00023999,2]
[316571454,1709544634583,-500.0,0.00023999,2]
[316571455,1709544634591,-500.0,0.00023999,2]
[316571456,1709544634601,-500.0,0.00023999,2]
[316571457,1709544634611,-500.0,0.00023999,2]
[316571458,1709544634621,-500.0,0.00023999,2]
[316571459,1709544634630,-500.0,0.00023999,2]
[316571460,1709544634639,-500.0,0.00023999,2]
[316571461,1709544634648,-460.0,0.00023999,2]
[316571462,1709544634657,-500.0,0.00023999,2]
[316571463,1709544634666,-500.0,0.00023999,2]
[316571464,1709544634675,-500.0,0.00023999,2]
[316571465,1709544634684,-500.0,0.00023999,2]
[316571466,1709544634693,-500.0,0.00023999,2]
[316571467,1709544634702,-500.0,0.00023999,2]
[316571468,1709544634711,-500.0,0.00023999,2]
[316571469,1709544634720,-500.0,0.00023999,2]
[316571470,1709544634729,-500.0,0.00023999,2]
[316571471,1709544634738,-500.0,0.00023999,2]
[316571472,1709544634747,-500.0,0.00023999,2]
[316571473,1709544634757,-500.0,0.00023999,2]
[316571474,1709544634766,-500.0,0.00023999,2]
[316571475,1709544634775,-500.0,0.00023999,2]
[316571476,1709544634784,-500.0,0.00023999,2]
[316571477,1709544634793,-500.0,0.00023999,2]
[316571478,1709544634803,-548.0,0.00023999,2]
[316571479,1709544634812,-264.4576008,0.00024,3]
[316571480,1709544634821,-398426.87047018,0.00024,5]
[316571481,1709544634835,-142332.91282734,0.00024,5]
[316571535,1709544638529,-625.9,0.00024,5]
[316571546,1709544638628,-1253952.78415653,0.00024,5]
[316571548,1709544638638,-208.77342431,0.00024,2]
[316571550,1709544638648,-862.00310438,0.00024004,2]
[316571553,1709544638657,-862.00310438,0.00024107,2]
[316571555,1709544638674,-1000.0,0.00024179,5]
[316571557,1709544638683,-5000.0,0.00024558,5]
[316571559,1709544638692,-457.569545,0.000246,11]
[316571561,1709544638701,-498.02445076,0.00024657,2]
[316571563,1709544638710,-500.0,0.00024657,2]
[316571565,1709544638719,-500.0,0.00024657,2]
[316571567,1709544638728,-500.0,0.00024657,2]
[316571569,1709544638737,-500.0,0.00024657,2]
[316571571,1709544638746,-637.4453611,0.00024657,2]
[316571573,1709544638756,-503.09631787,0.00024657,2]
[316571575,1709544638765,-500.0,0.00024657,2]
[316571577,1709544638773,-500.0,0.00024657,2]
[316571579,1709544638782,-500.0,0.00024657,2]
[316571581,1709544638791,-500.0,0.00024657,2]
[316571583,1709544638800,-500.0,0.00024657,2]
[316571585,1709544638809,-500.0,0.00024657,2]
[316571587,1709544638818,-500.0,0.00024657,2]
[316571589,1709544638827,-500.0,0.00024657,2]
[316571591,1709544638836,-500.0,0.00024657,2]
[316571593,1709544638846,-500.93064149,0.00024657,2]
[316571594,1709544638855,-500.0,0.00024657,2]
[316571596,1709544638866,-500.0,0.00024657,2]
[316571598,1709544638875,-172.15821987,0.00024657,2]
[316571600,1709544638884,-500.0,0.00024657,2]
[316571603,1709544638893,-500.0,0.00024657,2]
[316571604,1709544638902,-500.0,0.00024657,2]
[316571607,1709544638912,-500.0,0.00024657,2]
[316571609,1709544638921,-500.0,0.00024657,2]
[316571611,1709544638931,-218.42542059,0.00024657,2]
[316571613,1709544638941,-500.0,0.00024657,2]
[316571615,1709544638950,-500.0,0.00024657,2]
[316571617,1709544638959,-500.0,0.00024657,2]
[316571619,1709544638969,-500.56059507,0.00024657,2]
[316571621,1709544638977,-500.0,0.00024657,2]
[316571623,1709544638986,-500.0,0.00024657,2]
[316571625,1709544638995,-500.0,0.00024657,2]
[316571627,1709544639005,-514.31897555,0.00024657,2]
[316571629,1709544639014,-500.59553385,0.00024657,2]
[316571631,1709544639023,-500.0,0.00024657,2]
[316571633,1709544639032,-500.0,0.00024657,2]
[316571635,1709544639040,-501.32631946,0.00024657,2]
[316571637,1709544639049,-180.41771133,0.00024657,2]
[316571639,1709544639058,-540.33077414,0.00024657,2]
[316571641,1709544639067,-644.28495042,0.00024657,2]
[316571643,1709544639077,-500.0,0.00024657,2]
[316571645,1709544639086,-500.0,0.00024657,2]
[316571647,1709544639095,-500.0,0.00024657,2]
[316571649,1709544639104,-500.0,0.00024657,2]
[316571651,1709544639114,-500.0,0.00024657,2]
[316571653,1709544639124,-500.0,0.00024657,2]
[316571655,1709544639136,-500.0,0.00024657,2]
[316571657,1709544639146,-500.0,0.00024657,2]
[316571658,1709544639157,-500.0,0.00024657,2]
[316571661,1709544639168,-500.0,0.00024657,2]
[316571663,1709544639178,-500.0,0.00024657,2]
[316571664,1709544639188,-500.0,0.00024657,2]
[316571666,1709544639197,-500.0,0.00024657,2]
[316571668,1709544639208,-531.55498812,0.00024657,2]
[316571670,1709544639217,-500.99597146,0.00024657,2]
[316571673,1709544639227,-500.0,0.00024657,2]
[316571674,1709544639236,-500.0,0.00024657,2]
[316571676,1709544639246,-260.28046059,0.00024657,2]
[316571678,1709544639255,-528.70158777,0.00024657,2]
[316571680,1709544639264,-500.0,0.00024657,2]
[316571682,1709544639273,-500.0,0.00024657,2]
[316571684,1709544639282,-500.0,0.00024657,2]
[316571686,1709544639291,-500.0,0.00024657,2]
[316571688,1709544639300,-495.58513789,0.00024657,2]
[316571690,1709544639309,-309.96385602,0.00024657,2]
[316571692,1709544639318,-500.0,0.00024657,2]
[316571694,1709544639328,-503.26425663,0.00024657,2]
[316571697,1709544639339,-501.14278143,0.00024657,2]
[316571699,1709544639348,-500.0,0.00024657,2]
[316571701,1709544639359,-500.0,0.00024657,2]
[316571703,1709544639370,-500.0,0.00024657,2]
[316571704,1709544639379,-500.0,0.00024657,2]
[316571706,1709544639389,-500.0,0.00024657,2]
[316571708,1709544639399,-500.0,0.00024657,2]
[316571711,1709544639408,-500.0,0.00024657,2]
[316571713,1709544639418,-500.0,0.00024657,2]
[316571715,1709544639428,-501.58034232,0.00024657,2]
[316571717,1709544639437,-500.0,0.00024657,2]
[316571719,1709544639447,-500.0,0.00024657,2]
[316571721,1709544639456,-500.0,0.00024657,2]
[316571722,1709544639466,-500.0,0.00024657,2]
[316571723,1709544639476,-510.12599277,0.00024657,2]
[316571724,1709544639486,-500.0,0.00024657,2]
[316571725,1709544639495,-500.0,0.00024657,2]
[316571726,1709544639505,-500.0,0.00024657,2]
[316571727,1709544639514,-500.0,0.00024657,2]
[316571728,1709544639523,-341.18783485,0.00024657,2]
[316571729,1709544639532,-500.0,0.00024657,2]
[316571730,1709544639541,-500.0,0.00024657,2]
[316571731,1709544639550,-477.37764658,0.00024657,2]
[316571732,1709544639560,-500.0,0.00024657,2]
[316571733,1709544639570,-259.18884156,0.00024657,2]
[316571734,1709544639579,-500.0,0.00024657,2]
[316571735,1709544639589,-500.0,0.00024657,2]
[316571736,1709544639598,-500.0,0.00024657,2]
[316571737,1709544639607,-500.0,0.00024657,2]
[316571738,1709544639618,-500.0,0.00024657,2]
[316571739,1709544639631,-502.83883107,0.00024657,2]
[316571740,1709544639645,-501.50447989,0.00024657,2]
[316571741,1709544639658,-500.0,0.00024657,2]
[316571742,1709544639671,-372.20080766,0.00024657,2]
[316571743,1709544639683,-500.0,0.00024657,2]
[316571744,1709544639694,-544.71679012,0.00024657,2]
[316571745,1709544639704,-500.0,0.00024657,2]
[316571747,1709544639715,-169.50397513,0.00024657,2]
[316571748,1709544639727,-500.0,0.00024657,2]
[316571749,1709544639738,-500.0,0.00024657,2]
[316571750,1709544639750,-500.0,0.00024657,2]
[316571751,1709544639762,-327.76146586,0.00024657,2]
[316571752,1709544639774,-500.0,0.00024657,2]
[316571753,1709544639786,-500.0,0.00024657,2]
[316571754,1709544639797,-500.0,0.00024657,2]
[316571755,1709544639807,-500.0,0.00024657,2]
[316571757,1709544639818,-500.0,0.00024657,2]
[316571760,1709544639829,-500.0,0.00024657,2]
[316571762,1709544639839,-500.0,0.00024657,2]
[316571764,1709544639849,-500.0,0.00024657,2]
[316571766,1709544639858,-500.0,0.00024657,2]
[316571768,1709544639871,-500.0,0.00024657,2]
[316571770,1709544639882,-647.0,0.00024657,2]
[316571772,1709544639892,-633.28076739,0.00024657,2]
[316571774,1709544639903,-500.0,0.00024657,2]
[316571777,1709544639914,-500.0,0.00024657,2]
[316571778,1709544639925,-500.0,0.00024657,2]
[316571780,1709544639935,-500.0,0.00024657,2]
[316571782,1709544639947,-500.0,0.00024657,2]
[316571784,1709544639959,-500.0,0.00024657,2]